[Event "44th Chess Olympiad Open 2022"]
[Site "Chennai"]
[Date "2022.08.03"]
[Round "6.12"]
[White "Jumabayev, Rinat"]
[Black "Navara, David"]
[Result "*"]
[WhiteElo "2617"]
[BlackElo "2688"]
[Annotator "TA"]
[PlyCount "87"]
[EventDate "2022.??.??"]
[TimeControl "60"]

{[%evp 11,87,7,34,-14,0,4,0,0,-3,-16,-14,-20,-10,-31,-40,-43,-39,-28,-41,-41,
-38,-37,-33,-19,-31,-25,-29,-43,-54,-52,0,0,0,-4,0,-6,-4,-20,-14,-14,-22,-23,0,
0,-1,-1,-1,-1,-5,-12,-1,-3,-9,-8,-1,-1,-1,-2,-1,-1,-2,-2,-2,-11,0,0,0,0,0,0,0,
0,0,0,0,0,0,0]} 1. Nf3 {[%emt 0:00:05]} d5 {[%emt 0:00:06]} 2. g3 {[%emt 0:00:
00]} g6 {[%emt 0:00:06]} 3. Bg2 {[%emt 0:00:02]} Bg7 {[%emt 0:00:05]} 4. d4 {
[%emt 0:00:05]} Nf6 {[%emt 0:00:06]} 5. c4 {[%emt 0:00:03]} c6 {[%emt 0:00:05]}
6. O-O {[%emt 0:00:08]} O-O {[%emt 0:00:06]} 7. a4 {[%emt 0:00:06] D78:
Fianchetto Grünfeld: 6 0-0 c6.} (7. b3 $14 {might be stronger.}) 7... a5 {
[%emt 0:03:26]} 8. cxd5 {[%emt 0:00:06]} Nxd5 {[%emt 0:03:07] [#]} 9. Bg5 $146
{[%emt 0:00:06]} ({Predecessor:} 9. Nc3 Nb4 10. Bf4 Bg4 11. Ne5 Be6 12. Qd2 Nd7
13. Nf3 Nb6 14. Bh6 Nc4 15. Qc1 {0-1 (54) Fedoseev,V (2701)-Andreikin,D (2729)
Chess.com INT 2022}) 9... Bg4 {[%emt 0:03:43]} 10. h3 {[%emt 0:34:56]} Bxf3 {
[%emt 0:00:25]} 11. Bxf3 {[%emt 0:00:12]} Nb4 {[%emt 0:04:13]} 12. e3 {[%emt 0:
00:00]} h6 {[%emt 0:03:36]} 13. Bf4 {[%emt 0:00:08]} Nd7 {[%emt 0:00:19] [#]
Strongly threatening ...g5.} 14. h4 {[%emt 0:00:05] Inhibits g5.} e5 {[%emt 0:
00:00]} 15. dxe5 {[%emt 0:00:03]} Nxe5 {[%emt 0:00:36]} 16. Bxe5 {[%emt 0:00:
00]} Bxe5 {[%emt 0:06:27]} 17. Nc3 {[%emt 0:00:08]} Qxd1 {[%emt 0:08:45]} 18.
Rfxd1 {[%emt 0:02:53]} Rfd8 {[%emt 0:00:47] Against Rd7} 19. Rac1 {[%emt 0:00:
00]} Nd3 {[%emt 0:03:26]} 20. Rc2 {[%emt 0:03:53] Rcd2 is the strong threat.}
Bxc3 {[%emt 0:04:40]} (20... Nc5 $15) 21. Rxc3 $11 {[%emt 0:00:30]} Ne5 {
[%emt 0:00:58][%cal Yd3e5,Ye5d7,Yd7f6]} 22. Rxd8+ {[%emt 0:04:28]} Rxd8 {
[%emt 0:00:08] Endgame KRB-KRN} 23. Be4 {[%emt 0:00:01]} Rd2 {[%emt 0:01:42]}
24. f4 {[%emt 0:03:48]} (24. Rc5 $5 {[%cal Rc5e5]} Nd7 25. Rc2 Rd1+ 26. Kg2 $11
) 24... Nd7 {[%emt 0:05:28]} 25. Rc2 {[%emt 0:00:14]} Rd1+ {[%emt 0:02:28]} 26.
Kf2 {[%emt 0:00:01]} Nf6 {[%emt 0:00:48]} 27. Bf3 {[%emt 0:00:00] The position
is equal.} Ra1 {[%emt 0:00:38]} 28. b3 {[%emt 0:00:40]} Rb1 {[%emt 0:00:07]}
29. Rc3 {[%emt 0:00:44]} Rb2+ {[%emt 0:00:06]} 30. Ke1 {[%emt 0:00:05]} h5 {
[%emt 0:00:10]} 31. e4 {[%emt 0:00:14]} Kf8 {[%emt 0:02:34]} 32. e5 {[%emt 0:
00:47]} Ng4 {[%emt 0:00:24]} 33. Be4 {[%emt 0:02:10]} Ke7 {[%emt 0:00:31]} 34.
Bc2 {[%emt 0:00:20] [#]} Ne3 $1 {[%emt 0:00:14]} 35. Be4 {[%emt 0:00:04]} Nf5 {
[%emt 0:04:14]} 36. Bxf5 {[%emt 0:01:01]} gxf5 {[%emt 0:00:00] KR-KR} 37. Rd3 {
[%emt 0:00:06]} f6 {[%emt 0:03:45]} 38. Re3 {[%emt 0:00:00]} b6 {[%emt 0:03:16]
} 39. exf6+ {[%emt 0:00:27]} Kxf6 {[%emt 0:00:05]} 40. Kd1 {[%emt 0:00:15]} c5
{[%emt 0:02:46]} 41. Kc1 {[%emt 0:30:11]} Rg2 {[%emt 0:00:00]} 42. Kd1 {
[%emt 0:00:00]} Ra2 {[%emt 0:00:00]} 43. Re8 {[%emt 0:00:00]} Rb2 {[%emt 0:00:
00]} 44. Re3 {[%emt 0:00:00] Weighted Error Value: White=0.04 (flawless) /
Black=0.04 (flawless)} *

[Event "44th Chess Olympiad Open 2022"]
[Site "Chennai"]
[Date "2022.08.03"]
[Round "6.12"]
[White "Zwardon, Vojtech"]
[Black "Nogerbek, Kazybek"]
[Result "0-1"]
[WhiteElo "2503"]
[BlackElo "2437"]
[Annotator "TA"]
[PlyCount "174"]
[EventDate "2022.??.??"]
[TimeControl "60"]

{[%evp 12,174,12,11,10,6,20,11,14,-31,-31,-35,-29,-25,-29,-39,-39,-51,-18,-38,
-29,-26,-32,-41,-41,-42,-42,-41,-42,-39,-25,-24,-10,-55,-59,-55,-8,-35,-27,-22,
-35,-153,-144,-157,-159,-202,-214,-206,-217,-229,-229,-233,-228,-222,-225,-239,
-241,-239,-247,-479,-475,-710,-285,-281,-240,-241,-240,-249,-240,-243,-242,
-291,-245,-251,-225,-250,0,-356,-352,-295,-308,-302,-32,-33,-33,-1464,-1322,
-1563,-1089,-5513,-5353,-3669,-3518,-5349,-4700,-29953,-29955,-29957,-29957,
-29958,-29959,-29959,-29959,-5497,-5756,-6095,-1973,-29957,-125,-12049,-125,
-5137,-125,-125,-125,-125,-125,-125,-125,-29969,-29971,-29972,-29974,-29974,
-29974,-29974,-29975,-29975,-29976,-29976,-29975,-29975,-29976,-29978,-29979,
-29979,-29980,-29980,-29981,-29981,-29982,-29982,-29981,-29981,-29982,-29982,
-29982,-29982,-29981,-29983,-29982,-29982,-29983,-29983,-29984,-29985,-29986,
-29986,-29987,-29987,-29988,-29989,-29990,-29990,-29991]} 1. c4 {[%emt 0:00:01]
} Nf6 {[%emt 0:00:17]} 2. Nc3 {[%emt 0:00:03]} e5 {[%emt 0:00:12]} 3. Nf3 {
[%emt 0:00:02]} Nc6 {[%emt 0:00:13]} 4. e3 {[%emt 0:00:03]} Bb4 {[%emt 0:00:15]
} 5. Qc2 {[%emt 0:00:03]} Bxc3 {[%emt 0:00:12]} 6. Qxc3 {[%emt 0:00:03]} Qe7 {
[%emt 0:00:12]} 7. a3 {[%emt 0:01:16] 7.a3 was played by the boomers.} O-O {
[%emt 0:00:50] A28: English Opening: Four Knights Variation.} 8. b4 {[%emt 0:
00:00]} d5 {[%emt 0:00:13]} 9. cxd5 {[%emt 0:00:32]} Nxd5 {[%emt 0:00:14] The
position is equal.} 10. Qc5 {[%emt 0:00:09]} Qxc5 {[%emt 0:00:10]} 11. bxc5 {
[%emt 0:00:04]} e4 {[%emt 0:00:10]} 12. Ng5 {[%emt 0:01:30]} Bf5 {[%emt 0:00:
00]} 13. Bb2 {[%emt 0:06:19][%cal Yg2g4] [#]} f6 $146 {[%emt 0:01:02]} ({
Predecessor:} 13... h6 14. g4 Bg6 15. Bc4 Rfd8 16. Nh3 f6 17. Nf4 Bf7 18. Ne2
Kf8 19. Rc1 Na5 {½-½ (50) Zwardon,V (2482)-Navara,D (2682) Usti nad Labem
2022}) 14. Nh3 {[%emt 0:09:01]} b6 {[%emt 0:04:26]} 15. Rc1 {[%emt 0:15:52]}
Na5 {[%emt 0:04:41]} 16. cxb6 {[%emt 0:00:08]} cxb6 {[%emt 0:00:12]} 17. Ba6 {
[%emt 0:00:16] Prevents Rac8.} Bc8 {[%emt 0:01:20]} 18. Be2 {[%emt 0:02:34]}
Be6 {[%emt 0:02:01]} 19. d3 {[%emt 0:04:09]} exd3 {[%emt 0:01:16]} 20. Bxd3 {
[%emt 0:00:05]} Rac8 {[%emt 0:00:31]} 21. O-O {[%emt 0:06:40]} Rfd8 {[%emt 0:
00:00][%cal Yd5e3] Strongly threatening ...Nxe3!} 22. Ba6 {[%emt 0:03:04] A
strong pair of Bishops.} Rxc1 {[%emt 0:01:44]} 23. Rxc1 {[%emt 0:00:30]} Ne7 {
[%emt 0:00:08]} (23... b5 $15 24. Bd4 (24. Bxb5 Rb8 $17) 24... Nb3) 24. Nf4 {
[%emt 0:01:46] [#]} Bc4 {[%emt 0:01:58]} 25. Bxc4+ {[%emt 0:00:37]} ({Avoid
the trap} 25. Bxf6 $2 gxf6 26. Bxc4+ Nxc4 $19) 25... Nxc4 {[%emt 0:00:04]} 26.
Bd4 {[%emt 0:00:16]} (26. Bc3 $1 $15) 26... Nxa3 $17 {[%emt 0:00:45]} 27. Rc7 {
[%emt 0:00:08] [#]} Rc8 $1 {[%emt 0:01:48]} 28. Nd5 {[%emt 0:00:22]} (28. Rxc8+
Nxc8) 28... Rxc7 {[%emt 0:00:25]} 29. Nxc7 $19 {[%emt 0:00:02] Endgame KBN-KNN}
Nc6 {[%emt 0:00:44]} 30. Bb2 {[%emt 0:01:17]} Nc4 {[%emt 0:00:00]} 31. Bc3 {
[%emt 0:00:04]} Nd6 {[%emt 0:02:45]} 32. Kf1 {[%emt 0:00:58]} a5 {[%emt 0:00:
56][%cal Ya7a5,Ya5a4]} 33. Ke2 {[%emt 0:01:12]} b5 {[%emt 0:00:35]} 34. Kd3 {
[%emt 0:02:23]} b4 {[%emt 0:01:02]} 35. Be1 {[%emt 0:00:00]} (35. Ba1 {might
work better.}) 35... a4 {[%emt 0:15:39]} 36. Na6 {[%emt 0:12:32]} (36. f4 $142
a3 37. Kc2) 36... b3 {[%emt 0:00:00]} (36... Ne5+ $142 37. Kc2 b3+ 38. Kb1 Nd3)
37. Nc5 {[%emt 0:09:55]} Ne5+ {[%emt 0:00:00]} 38. Kd2 {[%emt 0:03:04]} Ndc4+ {
[%emt 0:00:00]} ({Stronger than} 38... b2 39. Kc2 a3 40. Kb1) 39. Kc1 {[%emt 0:
03:26]} b2+ {[%emt 0:00:00]} 40. Kb1 {[%emt 0:00:00]} a3 {[%emt 0:00:00]} 41.
h3 {[%emt 0:33:06]} Kf7 {[%emt 0:28:44]} 42. Bb4 {[%emt 0:02:34]} Ng6 {[%emt 0:
04:10]} 43. Ne4 {[%emt 0:04:05]} Nge5 $2 {[%emt 0:03:23]} ({Black should try} 
43... Ke6 $19 {White must now prevent ... Nh4.} 44. Nc3 Nge5) 44. f4 $2 {
[%emt 0:07:10]} (44. Nc5 $1 $11) 44... Nd3 {[%emt 0:02:53]} 45. Nd6+ {[%emt 0:
00:26]} Nxd6 {[%emt 0:00:14]} 46. Bxd6 {[%emt 0:00:05] KB-KN} Ke6 $2 {[%emt 0:
00:10]} (46... a2+ $1 $19 47. Kxa2 Ke6) 47. Bxa3 $15 {[%emt 0:00:05]} Kd5 {
[%emt 0:00:17]} 48. Bf8 $2 {[%emt 0:00:00]} (48. f5 $15) 48... g6 $19 {[%emt 0:
01:01]} 49. Bg7 {[%emt 0:00:00]} f5 {[%emt 0:00:00] ...h5 is the strong threat.
} 50. Bc3 {[%emt 0:00:00]} Kc4 {[%emt 0:00:00]} 51. Bf6 {[%emt 0:00:00]} h5 {
[%emt 0:00:00]} 52. Ka2 {[%emt 0:00:00]} Ne1 {[%emt 0:00:00]} 53. Kxb2 {
[%emt 0:00:00]} Nxg2 {[%emt 0:00:00]} 54. Kc2 {[%emt 0:00:00]} Nxe3+ {[%emt 0:
00:00]} 55. Kd2 {[%emt 0:00:00]} Ng2 $1 {[%emt 0:00:00]} 56. Ke2 {[%emt 0:03:
20]} Nxf4+ {[%emt 0:00:00]} 57. Kf3 {[%emt 0:00:03]} Nd5 {[%emt 0:00:00]} 58.
Bg5 {[%emt 0:02:17]} Kd4 {[%emt 0:00:00]} (58... Nc7 $142 59. h4 Nd5) 59. h4 {
[%emt 0:00:35]} Ke5 $2 {[%emt 0:00:00]} (59... Nc3 {mates} 60. Bf6+ Kd3 61. Bg7
Ne4 62. Bh6 Nc5 63. Bg7 Nb3 64. Kf2 Ke4 65. Bf8 Nd4 66. Bh6 Nf3 67. Kg3 Ne5 68.
Bg5 Nd3 69. Kg2 f4 70. Bf6 Ke3 71. Kf1 Nf2 72. Bd8 Ng4 73. Bg5 Kf3 74. Kg1 Nf2
75. Kf1 Ne4 76. Bd8 Nd2+ 77. Ke1 Nc4 78. Bc7 Ne3 79. Bb6 Kg2 80. Ba7 Nf5 81.
Bc5 Nxh4 82. Bd6 f3 83. Be7 f2+ 84. Kd2 Nf5 85. Bf6 f1=Q 86. Kc2 Qb5 87. Bh8 h4
88. Kc3 h3 89. Be5 Qxe5+ 90. Kc4 h2 91. Kb3 h1=Q 92. Kc4 Qc1+ 93. Kb4 Qcb2+ 94.
Kc4 Qed4#) 60. Bd8 $2 {[%emt 0:01:14]} (60. Bh6 $17) 60... Kd6 $2 {[%emt 0:00:
00]} (60... Nc3 $1 $19 {[%cal Rc3b5] ( -> ...Nb5)} 61. Bc7+ Ke6) 61. Ba5 $2 {
[%emt 0:00:00]} (61. Ke2 $17) 61... Nc7 $2 {[%emt 0:00:00]} (61... Kc5 $19 62.
Bd2 Kc4) 62. Be1 $17 {[%emt 0:00:40]} Ne6 {[%emt 0:00:00] Threatens to win
with ...Kd5.} 63. Bc3 {[%emt 0:00:35]} Ke7 {[%emt 0:00:00]} 64. Bd2 {[%emt 0:
00:00]} Kf7 {[%emt 0:00:00]} 65. Bc3 $2 {[%emt 0:00:25] [#]} (65. Kg3 $17)
65... g5 $1 {[%emt 0:00:00] Black mates.} 66. hxg5 {[%emt 0:00:04]} Kg6 {
[%emt 0:00:00]} 67. Bb4 {[%emt 0:00:48]} f4 {[%emt 0:00:00]} 68. Be7 {[%emt 0:
00:43]} Kf5 {[%emt 0:00:00]} 69. g6 {[%emt 0:00:12]} Nd4+ {[%emt 0:00:00]} 70.
Kg2 {[%emt 0:00:30]} Kxg6 {[%emt 0:00:00]} 71. Kh3 {[%emt 0:00:23]} Nf3 {
[%emt 0:00:00]} 72. Bd6 {[%emt 0:00:48]} Ng5+ {[%emt 0:00:00]} 73. Kg2 {
[%emt 0:00:47]} Kf5 {[%emt 0:00:00]} 74. Be7 {[%emt 0:00:16]} Kg4 {[%emt 0:00:
00]} 75. Bc5 {[%emt 0:00:26]} Ne4 {[%emt 0:00:00]} 76. Bb6 {[%emt 0:00:21]} Nd6
{[%emt 0:00:00]} 77. Ba7 {[%emt 0:00:36]} Nf5 {[%emt 0:00:00]} 78. Bb8 {
[%emt 0:00:43]} Ne3+ {[%emt 0:00:00]} 79. Kh2 {[%emt 0:00:32]} Kf3 {[%emt 0:00:
00]} 80. Kg1 {[%emt 0:00:40]} Kg3 {[%emt 0:00:44]} 81. Bc7 {[%emt 0:00:09]} h4
{[%emt 0:00:49][%cal Yh5h4,Yh4h3]} 82. Ba5 {[%emt 0:00:00]} h3 {[%emt 0:00:57]}
83. Be1+ {[%emt 0:00:08]} Kf3 {[%emt 0:00:03]} 84. Kh2 {[%emt 0:00:14]} Ke2 {
[%emt 0:00:42]} 85. Bh4 {[%emt 0:00:46]} Nf5 {[%emt 0:00:00]} 86. Bd8 {[%emt 0:
01:04] [#]} f3 $1 {[%emt 0:00:05]} 87. Bb6 {[%emt 0:00:00]} Ne3 {[%emt 0:00:05]
Weighted Error Value: White=1.02/Black=0.67} 0-1

[Event "44th Chess Olympiad Open 2022"]
[Site "Chennai"]
[Date "2022.08.03"]
[Round "6.12"]
[White "Urazayev, Arystanbek"]
[Black "Hracek, Zbynek"]
[Result "1-0"]
[WhiteElo "2430"]
[BlackElo "2555"]
[Annotator "TA"]
[PlyCount "89"]
[EventDate "2022.??.??"]
[TimeControl "60"]

{[%evp 13,89,8,21,6,21,9,45,40,75,74,84,95,89,84,93,54,60,60,66,51,53,66,64,60,
63,56,43,46,51,31,51,-18,-15,-17,-19,-19,-35,-50,60,69,67,62,81,64,79,88,126,
26,40,22,0,-12,-16,-30,0,-82,-30,-77,-27,-67,-9,-9,0,0,0,-46,0,0,876,0,868,868,
814,810,811,781,721,693]} 1. e4 {[%emt 0:00:56]} c5 {[%emt 0:00:06]} 2. Nf3 {
[%emt 0:00:30]} Nc6 {[%emt 0:00:06]} 3. Bb5 {[%emt 0:00:51]} e6 {[%emt 0:00:12]
} 4. O-O {[%emt 0:04:47]} Nge7 {[%emt 0:00:08]} 5. Re1 {[%emt 0:00:13]} Nd4 {
[%emt 0:00:22]} 6. Nxd4 {[%emt 0:00:16]} cxd4 {[%emt 0:00:08]} 7. c3 {[%emt 0:
00:00]} a6 {[%emt 0:00:30]} 8. Bf1 {[%emt 0:00:15] B30: Sicilian: 2...Nc6 3
Bb5, lines without ...g6.} Nc6 {[%emt 0:00:19]} 9. b4 $1 {[%emt 0:00:26] is
recently more successful than 9.d3.} dxc3 {[%emt 0:03:48]} 10. dxc3 {[%emt 0:
02:56] [#] White is slightly better.} Qc7 $146 {[%emt 0:03:58]} ({Predecessor:
} 10... Be7 11. Bf4 d5 12. exd5 exd5 13. a4 O-O 14. Na3 d4 15. b5 axb5 16. Nxb5
dxc3 17. Nxc3 Qxd1 18. Raxd1 {1-0 (38) Vidit,S (2723)-Skliarov,V (2387) Chess.
com INT 2022}) 11. a4 {[%emt 0:03:05]} b6 {[%emt 0:07:39]} 12. Na3 {[%emt 0:05:
45]} Be7 {[%emt 0:02:36]} 13. Nc4 {[%emt 0:06:22]} O-O {[%emt 0:00:00]} 14. Qf3
{[%emt 0:12:14]} d6 {[%emt 0:02:32] Against e5} 15. Qg3 {[%emt 0:00:00]} Ne5 {
[%emt 0:08:37]} 16. Nxe5 {[%emt 0:03:52]} dxe5 {[%emt 0:00:11]} 17. Bh6 {
[%emt 0:02:02][%csl Gh6][%cal Rg3g7]} Bf6 {[%emt 0:00:02]} 18. a5 {[%emt 0:02:
15] White is much more active. The black rooks are badly placed.} b5 {[%emt 0:
03:20]} 19. c4 {[%emt 0:04:56]} bxc4 {[%emt 0:01:49]} 20. Rac1 {[%emt 0:00:08]}
Bd7 {[%emt 0:02:16]} 21. Rxc4 {[%emt 0:10:08]} Qb7 {[%emt 0:00:00]} 22. Re3 {
[%emt 0:13:17]} ({Much weaker is} 22. Bg5 Bxg5 23. Qxg5 Bb5 $11) (22. Rec1 $1
$14 Bb5 23. Rc7 Qxe4 24. Bxb5 axb5 25. Bd2) 22... Kh8 {[%emt 0:00:00]} (22...
Bb5 {is interesting.} 23. Rf3 Qe7 24. Rc1 Bxf1 25. Rxf1 Rab8) 23. Rf3 {[%emt 0:
06:55] Strongly threatening Rxf6.} Rg8 {[%emt 0:00:18]} 24. Bg5 {[%emt 0:01:11]
} Bxg5 {[%emt 0:00:08]} 25. Qxg5 {[%emt 0:00:05]} f6 {[%emt 0:00:00]} (25...
Bb5 $15 26. Rc1 f6) 26. Qc1 $1 $14 {[%emt 0:08:09] Hoping for Rc7.} Bb5 {
[%emt 0:11:04]} 27. Rc7 {[%emt 0:00:01]} Qxe4 {[%emt 0:00:40]} 28. Bxb5 {
[%emt 0:00:04]} axb5 {[%emt 0:00:05]} 29. Rb3 {[%emt 0:00:05]} Rgd8 {[%emt 0:
00:00]} 30. Rb1 {[%emt 0:00:13]} (30. h3 $1 $16) 30... h5 $11 {[%emt 0:02:04]}
31. h3 {[%emt 0:00:04]} Kh7 {[%emt 0:03:07]} 32. Ra1 {[%emt 0:02:08]} Qxb4 {
[%emt 0:02:40]} 33. a6 {[%emt 0:00:04]} Rd2 {[%emt 0:02:40] White must now
prevent ...Qd4.} 34. Rc2 {[%emt 0:01:49] [#]} (34. Qc6 $1 $11 {remains equal.}
Qd4 35. Rf1) 34... Rd7 {[%emt 0:00:27]} (34... Rd6 $1 $17 {[%cal Rd6a6]} 35. a7
Qd4) 35. Rc6 {[%emt 0:01:17]} (35. Rc8 $1 $11 Rxc8 36. Qxc8) 35... Qb3 {
[%emt 0:03:34]} (35... Qe4 $17) 36. Rc7 {[%emt 0:00:03]} Rxc7 {[%emt 0:02:16]}
(36... Qd3 $15) 37. Qxc7 $15 {[%emt 0:00:03] Endgame KQR-KQR} Qc4 {[%emt 0:00:
13]} 38. Qb7 {[%emt 0:00:54]} Qd5 {[%emt 0:00:12] Threatens to win with ...
Qxb7.} 39. Qf7 {[%emt 0:00:05]} (39. Ra5 $11 {should be considered.}) 39... h4
{[%emt 0:01:58]} (39... e4 $1 $15 40. a7 e3 41. fxe3 b4) 40. Rc1 {[%emt 0:00:
52]} Qd3 $2 {[%emt 0:02:50] [#]} (40... e4 $11 41. Rc7 Qg5) 41. Qh5+ $1 $18 {
[%emt 0:03:47]} Kg8 {[%emt 0:00:01]} 42. Rc7 {[%emt 0:00:00] Qf7+ would kill
now. White is clearly winning.} Qh7 {[%emt 0:01:53]} 43. Qf7+ {[%emt 0:06:45]}
Kh8 {[%emt 0:00:01]} 44. Qxe6 {[%emt 0:07:24] And now Rc8+ would win.} Qg8 {
[%emt 0:06:36] Against Rc8} 45. Qg4 {[%emt 0:02:10] Weighted Error Value:
White=0.18 (very precise) /Black=0.21 (precise)} 1-0

[Event "44th Chess Olympiad Open 2022"]
[Site "Chennai"]
[Date "2022.08.03"]
[Round "6.13"]
[White "Nabaty, Tamir"]
[Black "Barcenilla, Rogelio"]
[Result "0-1"]
[WhiteElo "2631"]
[BlackElo "2463"]
[Annotator "TA"]
[PlyCount "128"]
[EventDate "2022.??.??"]
[TimeControl "60"]

{[%evp 16,128,35,33,29,14,36,44,43,32,62,45,62,54,67,58,54,62,106,99,118,110,
118,85,79,62,76,70,61,72,95,72,63,57,57,49,52,52,68,38,62,39,31,30,33,15,30,0,
0,0,0,0,0,0,0,0,0,0,0,0,0,0,15,-306,-295,-287,-282,-317,-324,-292,-310,-298,
-302,-355,-354,-639,-633,-624,-618,-603,-599,-831,-850,-1307,-1292,-1199,-1234,
-1058,-968,-2097,-2160,-1926,-1950,-1569,-1512,-2056,-2033,-12836,-12837,
-12834,-12838,-12838,-12839,-12839,-12839,-12840,-12840,-12840,-12840,-12842,
-12840,-12841,-12842,-12842,-12842]} 1. d4 {[%emt 0:00:03]} Nf6 {[%emt 0:00:06]
} 2. c4 {[%emt 0:00:06]} g6 {[%emt 0:00:05]} 3. g3 {[%emt 0:00:11]} Bg7 {
[%emt 0:00:07]} 4. Bg2 {[%emt 0:00:13]} d6 {[%emt 0:00:06]} 5. Nf3 {[%emt 0:00:
00]} O-O {[%emt 0:00:07]} 6. Nc3 {[%emt 0:00:18]} Nc6 {[%emt 0:00:18]} 7. O-O {
[%emt 0:00:22]} a6 {[%emt 0:00:06]} 8. b3 {[%emt 0:00:30] 8.Bf4 is the recent
fashion.} Rb8 {[%emt 0:01:27]} 9. d5 {[%emt 0:00:23]} Na5 {[%emt 0:00:47] E63:
King's Indian: Fianchetto: Panno Variation with 7...a6.} 10. Bg5 {[%emt 0:00:
00]} c5 {[%emt 0:03:57]} 11. dxc6 $1 {[%emt 0:00:10]} Nxc6 {[%emt 0:00:09]
White is slightly better.} 12. Rc1 {[%emt 0:00:38]} Bf5 {[%emt 0:01:09]} 13.
Nd5 {[%emt 0:09:10]} Ne4 {[%emt 0:10:28]} 14. Be3 {[%emt 0:01:53]} Nf6 {
[%emt 0:07:38] [#]} 15. Nh4 $146 {[%emt 0:14:17]} ({Predecessor:} 15. h3 Be4
16. Qd2 b5 17. Rfd1 Rc8 18. h4 bxc4 19. Nxf6+ Bxf6 20. Rxc4 d5 21. Ra4 {
1-0 (62) Babic,D (2475)-Ilyushchenko,Y (2359) ICCF email 2018}) 15... Be6 {
[%emt 0:04:48]} 16. Qd2 {[%emt 0:02:04]} Ng4 {[%emt 0:06:04]} 17. Bb6 {[%emt 0:
00:00]} Qc8 {[%emt 0:00:44]} 18. Nf3 {[%emt 0:05:56]} Qd7 {[%emt 0:03:06]} 19.
Nf4 {[%emt 0:01:24]} (19. Ng5 {is interesting.} Bh6 20. Nc7 Nd8 21. f4) 19...
Bh6 {[%emt 0:04:20]} 20. e3 {[%emt 0:02:16]} (20. Nd4 {seems wilder.} Nxd4 21.
Bxd4 Bf5 22. e4) 20... Nf6 {[%emt 0:03:59]} 21. Nxe6 {[%emt 0:01:18]} Qxe6 {
[%emt 0:00:35]} 22. Nd4 {[%emt 0:02:47]} Qd7 {[%emt 0:00:29]} 23. Nxc6 {
[%emt 0:06:11]} bxc6 {[%emt 0:00:07]} 24. Qa5 {[%emt 0:00:37]} Qb7 {[%emt 0:00:
00]} 25. Bd4 {[%emt 0:00:37]} Bg7 {[%emt 0:00:08]} 26. Rb1 {[%emt 0:05:02]}
Rfc8 {[%emt 0:10:20]} 27. b4 {[%emt 0:05:42]} Qc7 {[%emt 0:00:51]} 28. Qxc7 {
[%emt 0:06:04]} ({And not} 28. Qxa6 e5 29. Bxe5 dxe5 $17) 28... Rxc7 {[%emt 0:
00:00]} 29. a4 {[%emt 0:00:04]} Nd7 $1 {[%emt 0:00:26]} 30. a5 {[%emt 0:01:29]}
Kf8 {[%emt 0:13:36]} 31. f4 {[%emt 0:05:50]} Bxd4 {[%emt 0:04:16]} 32. exd4 {
[%emt 0:00:02]} e6 {[%emt 0:01:02]} 33. Rfc1 {[%emt 0:04:34]} Ke7 34. Kf2 {
[%emt 0:00:30]} Nf6 35. Bf1 {[%emt 0:00:30]} Ra7 {[%emt 0:00:28]} 36. Kf3 {
[%emt 0:00:30]} Ne8 {[%emt 0:00:30]} 37. d5 {[%emt 0:00:30]} cxd5 {[%emt 0:00:
00]} 38. cxd5 {[%emt 0:00:30]} Nc7 {[%emt 0:00:30]} 39. Rxc7+ $4 {[%emt 0:00:
00] This costs White the game.} Rxc7 $19 {[%emt 0:00:30]} 40. Bxa6 $11 {
[%emt 0:23:15] Endgame KRR-KRB} Rc3+ {[%emt 0:10:52]} ({Inferior is} 40... exd5
41. Bd3 $15) 41. Ke2 {[%emt 0:31:28]} Ra3 {[%emt 0:00:00]} (41... exd5 42. Bd3
$17) 42. Bd3 {[%emt 0:00:00]} Ra4 {[%emt 0:00:00]} ({Worse is} 42... exd5 43.
a6 $15) 43. dxe6 {[%emt 0:00:00]} fxe6 {[%emt 0:00:00]} 44. a6 {[%emt 0:00:00]}
Rbxb4 {[%emt 0:00:00]} 45. Rc1 $2 {[%emt 0:00:00]} (45. Rxb4 Rxb4 46. Kd2)
45... Rb2+ $19 {[%emt 0:00:00] Black is clearly winning.} 46. Ke3 {[%emt 0:00:
00]} Ra3 {[%emt 0:00:00]} 47. Rc7+ {[%emt 0:00:00] [#]} Kf6 $1 {[%emt 0:00:00]
...Rbb3 is the strong threat.} 48. g4 {[%emt 0:00:00][%csl Gf4][%cal Rg4g5]} g5
{[%emt 0:00:00] aiming for ...gxf4+.} 49. fxg5+ {[%emt 0:00:00]} Ke5 {[%emt 0:
00:00]} 50. Rc1 {[%emt 0:04:12]} Rbb3 {[%emt 0:00:00]} 51. Rd1 {[%emt 0:00:19]}
Rxa6 {[%emt 0:00:00] And now ...Raa3 would win.} 52. Re1 {[%emt 0:01:26]} Ra2 {
[%emt 0:00:00]} 53. h4 {[%emt 0:00:24]} Rh2 {[%emt 0:00:00]} 54. h5 {[%emt 0:
00:35]} d5 {[%emt 0:00:00]} 55. g6 {[%emt 0:00:00]} hxg6 {[%emt 0:00:00]} 56.
hxg6 {[%emt 0:00:01]} Kf6 {[%emt 0:00:00]} 57. Rf1+ {[%emt 0:01:01] [#]} Kg7 $1
{[%emt 0:00:00]} 58. Rf7+ {[%emt 0:00:28]} Kg8 {[%emt 0:00:00]} 59. Rd7 {
[%emt 0:00:33]} Rh3+ {[%emt 0:00:00]} 60. Kf4 {[%emt 0:00:02]} Rhxd3 {[%emt 0:
00:00]} 61. Kg5 {[%emt 0:00:06]} Rb8 {[%emt 0:00:00]} 62. Re7 {[%emt 0:00:41]}
Re3 {[%emt 0:00:00]} 63. Kh6 {[%emt 0:00:07]} Rh3+ {[%emt 0:00:00]} 64. Kg5 {
[%emt 0:00:02]} Rd8 {[%emt 0:00:00] Weighted Error Value: White=0.56/Black=0.
03 (flawless)} 0-1